bitfinex-derivatives/quotes_BNBF0:USTF0_20250710
["timestamp","ask_amount","ask_price","bid_price","bid_amount"]
[1752165753650,5.56960891,672.96,671.17,4.69713116]
[1752165753651,1.67164846,671.92,671.17,4.69713116]
[1752165754148,2.22616171,672.08,671.17,4.69713116]
[1752165754149,1.67164846,671.91,671.18,2.20213116]
[1752165755849,1.67164846,671.91,671.17,4.69713116]
[1752165756452,1.67164846,671.92,671.18,2.20213116]
[1752165756752,1.67164846,671.9,671.23,2.20213116]
[1752165756950,1.67164846,671.89,671.23,2.20213116]
[1752165757354,1.67164846,671.88,671.25,2.20213116]
[1752165757754,1.67164846,671.88,671.26,2.20213116]
[1752165759057,1.67164846,671.87,671.29,2.20213116]
[1752165760959,1.67164846,671.87,671.3,2.20213116]
[1752165761358,1.67164846,671.86,671.29,2.20213116]
[1752165761857,1.67164846,671.86,671.25,2.20213116]
[1752165762153,1.67164846,671.88,671.25,2.20213116]
[1752165762559,1.67164846,671.88,671.24,2.20213116]
[1752165763759,1.67164846,671.91,671.27,2.20213116]
[1752165764960,1.67164846,671.91,671.28,2.20213116]
[1752165765765,1.67164846,671.92,671.24,2.20213116]
[1752165766362,1.67164846,671.93,671.24,2.20213116]
[1752165766559,1.67164846,671.92,671.24,2.20213116]
[1752165768361,1.67164846,671.93,671.22,2.20213116]
[1752165769561,1.67164846,671.93,671.23,2.52]
[1752165770364,1.67164846,671.93,671.23,4.72213116]
[1752165771166,1.67164846,671.94,671.23,2.52]
[1752165771866,1.67164846,671.93,671.23,2.52]
[1752165772066,1.67164846,671.93,671.23,4.72213116]
[1752165772263,1.67164846,671.95,671.25,2.20213116]
[1752165772463,1.67164846,671.94,671.23,2.52]
[1752165772667,1.67164846,671.96,671.23,2.52]
[1752165773367,1.67164846,672.02,671.26,2.20213116]
[1752165773668,1.67164846,671.97,671.23,2.52]
[1752165774467,1.67164846,671.98,671.23,2.52]
[1752165775265,1.67164846,671.97,671.23,2.52]
[1752165776069,1.67164846,671.98,671.23,2.52]
[1752165780772,1.67164846,671.96,671.27,2.20213116]
[1752165781576,0.25899891,672.45,671.29,2.20213116]
[1752165781577,1.67164846,671.95,671.29,2.20213116]
[1752165782274,1.67164846,671.95,671.23,2.52]
[1752165782275,1.67164846,671.95,671.28,2.20213116]
[1752165782675,1.67164846,671.96,671.29,2.20213116]
[1752165783071,1.67164846,671.96,671.3,2.20213116]
[1752165783278,1.67164846,671.95,671.31,2.20213116]
[1752165783578,1.67164846,672.01,671.23,2.52]
[1752165783878,1.67164846,672.03,671.23,2.52]
[1752165784282,1.67164846,672.04,671.23,2.52]
[1752165784483,1.67164846,672.07,671.23,2.52]
[1752165784684,1.67164846,672.08,671.23,2.52]
[1752165784882,1.67164846,672.07,671.23,2.52]
[1752165785282,1.67164846,672.08,671.23,2.52]
[1752165785487,1.67164846,672.07,671.23,2.52]
[1752165785687,1.67164846,672.06,671.18,2.20213116]
[1752165785883,1.67164846,672.07,671.19,2.20213116]
[1752165786084,1.67059746,672.08,671.17,2.20213116]
[1752165786588,1.67059746,672.07,671.16,2.20213116]
[1752165786788,1.67059746,672.08,671.15,2.20213116]
[1752165787088,1.67059746,672.12,671.2,2.20213116]
[1752165787384,1.67059746,672.13,671.2,2.20213116]
[1752165787583,1.67059746,672.13,671.19,2.20213116]
[1752165788487,1.67059746,672.14,671.19,2.20213116]
[1752165788688,1.67059746,672.18,671.24,2.20213116]
[1752165789188,1.67059746,672.22,671.28,2.20213116]
[1752165789387,1.67059746,672.22,671.2,2.178]
[1752165789388,1.67059746,672.23,671.27,2.20213116]
[1752165789685,1.67059746,672.2,671.34,2.20213116]
[1752165789884,1.67059746,672.19,671.35,2.20213116]
[1752165790089,1.67059746,672.18,671.34,2.20213116]
[1752165790287,1.67059746,672.19,671.34,2.20213116]
[1752165790987,1.67059746,672.2,671.3,2.20213116]
[1752165791183,1.67059746,672.21,671.28,2.20213116]
[1752165791690,1.67059746,672.22,671.3,2.20213116]
[1752165792385,1.67059746,672.22,671.31,2.20213116]
[1752165793286,1.67059746,672.2,671.3,2.20213116]
[1752165793487,1.67059746,672.16,671.23,2.20213116]
[1752165793787,1.67059746,672.16,671.24,2.20213116]
[1752165794289,1.67059746,672.15,671.23,2.20213116]
[1752165795087,1.67059746,672.16,671.21,2.20213116]
[1752165795284,1.67059746,672.11,671.2,2.178]
[1752165797991,1.67059746,672.09,671.2,2.178]
[1752165798690,1.67059746,672.09,671.21,2.20213116]
[1752165799088,1.67059746,672.09,671.2,4.38013116]
[1752165799994,1.67059746,672.1,671.2,2.178]
[1752165800194,1.67059746,672.09,671.2,2.178]
[1752165802196,1.67059746,672.08,671.21,2.20213116]
[1752165802997,1.67059746,672.08,671.23,2.20213116]
[1752165803696,1.67059746,672.09,671.24,2.20213116]
[1752165803896,1.67059746,672.07,671.27,2.20213116]
[1752165804099,1.67059746,672.07,671.28,2.20213116]
[1752165804596,1.67059746,672.07,671.27,2.20213116]
[1752165804798,1.67059746,672.08,671.26,2.20213116]
[1752165806003,1.67059746,672.13,671.32,2.20213116]
[1752165806399,0.25895555,672.64,671.29,2.20213116]
[1752165806400,1.67059746,672.14,671.29,2.20213116]
[1752165808305,1.67059746,672.14,671.3,2.20213116]
[1752165809712,1.67059746,672.13,671.32,2.20213116]
[1752165810011,1.67059746,672.14,671.31,2.20213116]
[1752165810506,1.67059746,672.13,671.3,2.20213116]
[1752165811707,1.67059746,672.09,671.24,2.20213116]
[1752165812312,1.67059746,672.09,671.25,2.20213116]
[1752165813013,1.67059746,672.1,671.23,2.20213116]
[1752165813310,1.67059746,672.09,671.23,2.20213116]
[1752165813813,1.67059746,672.09,671.24,2.20213116]
[1752165814013,1.67059746,672.08,671.26,2.20213116]
[1752165815314,1.67059746,672.09,671.22,2.20213116]
[1752165815510,1.67059746,672.09,671.23,2.20213116]
[1752165817315,1.67059746,672.1,671.22,2.20213116]
[1752165817916,1.67059746,672.1,671.23,2.20213116]
[1752165818412,1.67059746,672.1,671.24,2.20213116]
[1752165818711,1.67059746,672.1,671.23,2.20213116]
[1752165819017,1.67059746,672.13,671.2,2.178]
[1752165819514,0.25895555,672.64,671.2,2.178]
[1752165819515,1.67059746,672.12,671.2,2.178]
[1752165820013,1.67059746,672.16,671.21,2.20213116]
[1752165823418,1.67059746,672.15,671.21,2.20213116]
[1752165823712,1.67059746,672.14,671.2,4.38013116]
[1752165824512,1.67059746,672.13,671.2,4.38013116]
[1752165824714,1.67059746,672.16,671.2,2.178]
[1752165826314,1.67059746,672.15,671.2,2.178]
[1752165828619,1.67059746,672.13,671.2,2.178]
[1752165829322,1.67059746,672.12,671.21,2.20213116]
[1752165831024,1.67059746,672.12,671.22,2.20213116]
[1752165831521,1.67059746,672.11,671.22,2.20213116]
[1752165831720,1.67059746,672.12,671.22,2.20213116]
[1752165832421,1.67059746,672.11,671.22,2.20213116]
[1752165833719,1.67059746,672.12,671.23,2.20213116]
[1752165834822,1.67059746,672.07,671.35,2.20213116]
[1752165835520,1.67059746,672.07,671.34,2.20213116]
[1752165836323,1.67059746,672.04,671.4,2.20213116]
[1752165838228,1.67059746,672.04,670.79,0.25904325]
[1752165838229,1.67059746,672.04,671.41,2.20213116]
[1752165838425,1.67059746,672.05,671.39,2.20213116]
[1752165838722,1.67059746,672.05,671.38,2.20213116]
[1752165839425,1.67059746,672.05,671.39,2.20213116]
[1752165839822,1.67059746,672.05,671.4,2.188]
[1752165840721,1.67059746,672.06,671.4,2.188]
[1752165843629,1.67059746,672.04,671.4,2.188]
[1752165846025,0.25895555,672.64,671.4,2.188]
[1752165846026,1.67059746,672.05,671.4,2.188]
[1752165846429,1.67059746,672.04,671.4,2.188]
[1752165846925,1.67059746,672.05,671.4,2.188]
[1752165850927,2.22616171,672.2,671.4,2.188]
[1752165850928,1.67059746,672.04,671.4,2.188]
[1752165851130,1.67059746,672.05,671.4,2.188]
[1752165851327,1.67059746,672.04,671.4,2.188]
[1752165853632,1.67059746,672.03,671.4,2.188]
[1752165853832,1.67059746,672.08,671.4,2.188]
[1752165854437,1.67059746,672.08,671.4,4.39013116]
[1752165855838,1.67059746,672.09,671.4,2.188]
[1752165857236,1.67059746,672.08,671.4,2.188]
[1752165858742,1.67059746,672.08,671.4,4.39013116]
[1752165859537,1.67059746,672.08,671.4,2.188]
[1752165862043,1.67059746,672.07,671.4,4.39013116]
[1752165863241,1.67059746,672.08,671.4,2.188]
[1752165863744,1.67059746,672.02,671.4,2.188]
[1752165863943,1.67059746,672.03,671.4,2.188]
[1752165864243,1.67059746,672.02,671.4,2.188]
[1752165865745,1.67059746,672.01,671.4,2.188]
[1752165867249,1.67059746,672.02,671.4,2.188]
[1752165867847,1.67059746,672.01,671.4,2.188]
[1752165868951,1.67059746,672.02,671.4,2.188]
[1752165869250,1.67059746,672.07,671.4,2.188]
[1752165870947,1.67059746,672.06,671.4,2.188]
[1752165871148,1.67059746,672.03,671.4,2.188]
[1752165871548,1.67059746,672.0,671.4,2.188]
[1752165872350,1.67059746,671.93,671.4,2.188]
[1752165872547,1.67059746,671.94,671.4,2.188]
[1752165872752,1.67059746,671.93,671.4,2.188]
[1752165873954,0.25895555,672.64,671.4,2.188]
[1752165873955,1.67059746,671.92,671.4,2.188]
[1752165874552,1.67059746,671.87,671.4,2.188]
[1752165875052,1.67059746,671.82,671.4,2.188]
[1752165875452,1.67059746,671.83,671.4,2.188]
[1752165876655,1.67059746,671.84,671.4,2.188]
[1752165877353,1.67059746,671.85,671.4,2.188]
[1752165877559,1.67059746,671.86,671.4,2.188]
[1752165878256,1.67059746,671.87,671.4,2.188]
[1752165879059,1.67059746,671.88,671.4,2.188]
[1752165879459,1.67059746,671.89,671.4,2.188]
[1752165880359,1.67059746,671.9,671.4,2.188]
[1752165882560,1.67059746,671.91,671.4,2.188]
[1752165883560,1.67059746,671.93,671.4,2.188]
[1752165883757,2.22616171,672.1,671.4,2.188]
[1752165883758,1.67059746,671.95,671.4,2.188]
[1752165884561,1.67059746,671.96,671.4,2.188]
[1752165884961,1.67059746,671.95,671.4,2.188]
[1752165885262,1.67059746,671.94,671.4,2.188]
[1752165885562,1.67059746,671.98,671.4,2.188]
[1752165886062,1.67059746,672.02,671.4,2.188]
[1752165886460,1.67059746,672.0,671.4,2.188]
[1752165888159,1.67059746,672.01,671.4,2.188]
[1752165889764,1.66754954,672.01,671.4,2.188]
[1752165892667,2.22616171,672.15,671.4,2.188]
[1752165892668,1.66754954,672.0,671.4,2.188]
[1752165894569,2.22616171,672.15,671.4,2.188]
[1752165894570,1.66754954,672.01,671.4,2.188]
[1752165894969,1.66754954,672.0,671.4,2.188]
[1752165895269,1.66754954,672.12,671.4,2.188]
[1752165895472,0.25895555,672.64,671.4,2.188]
[1752165895473,1.66754954,672.13,671.4,2.188]
[1752165895768,1.66754954,672.13,670.91,2.20213116]
[1752165896975,1.66754954,672.09,670.88,2.20213116]
[1752165898275,1.66754954,672.1,670.88,2.20213116]
[1752165898872,1.66754954,672.1,670.89,2.321]
[1752165900377,1.66754954,672.09,670.89,2.321]
[1752165901379,1.66754954,672.09,670.89,4.52313116]
[1752165901975,1.27386882,672.33,670.89,4.52313116]
[1752165901976,1.66754954,672.05,670.99,2.20213116]
[1752165902176,1.66754954,672.04,671.0,2.20213116]
[1752165903479,1.66754954,672.04,670.99,2.20213116]
[1752165903676,1.66754954,672.14,671.09,2.20213116]
[1752165904882,1.66754954,672.16,671.11,2.20213116]
[1752165905181,1.66754954,672.15,671.1,2.20213116]
[1752165906182,1.66754954,672.15,671.11,2.20213116]
[1752165906680,1.66754954,672.18,671.02,2.20213116]
[1752165907479,1.66754954,672.17,671.01,2.20213116]
[1752165910185,1.66754954,672.18,670.99,2.20213116]
[1752165910385,1.66754954,672.15,671.04,2.20213116]
[1752165910585,1.66754954,672.16,671.04,2.20213116]
[1752165910985,1.66754954,672.15,671.06,2.20213116]
[1752165911182,1.66754954,672.2,670.97,2.20213116]
[1752165912288,1.66754954,672.23,670.89,4.52313116]
[1752165912489,1.66754954,672.17,670.89,2.321]
[1752165913587,1.66754954,672.16,670.89,2.321]
[1752165913788,1.66754954,672.1,670.89,2.321]
[1752165914688,1.66754954,672.07,670.89,2.321]
[1752165914893,1.66754954,672.01,670.89,2.321]
[1752165915391,1.66754954,672.0,670.89,2.321]
[1752165915791,3.33961706,672.47,670.89,2.321]
[1752165915792,1.66754954,671.9,671.08,2.20213116]
[1752165915990,1.66754954,671.88,671.06,2.20213116]
[1752165916190,1.66754954,671.88,671.07,2.20213116]
[1752165916596,1.66754954,671.83,671.02,2.20213116]
[1752165916898,1.66754954,671.82,671.02,2.20213116]
[1752165917192,1.66754954,671.78,670.95,2.20213116]
[1752165917696,1.66754954,671.78,670.93,2.20213116]
[1752165917892,1.66754954,671.78,670.95,2.20213116]
[1752165918097,1.66754954,671.77,670.94,2.20213116]
[1752165918297,1.66754954,671.78,670.93,2.20213116]
[1752165918897,1.66754954,671.78,670.94,2.20213116]
[1752165919399,1.66754954,671.78,670.93,2.20213116]
[1752165919900,1.66754954,671.78,670.94,2.20213116]
[1752165920199,1.66754954,671.79,670.93,2.20213116]
[1752165920706,1.66754954,671.78,670.95,2.20213116]
[1752165920901,1.66754954,671.74,670.91,2.20213116]
[1752165921304,2.22616171,671.88,670.89,2.321]
[1752165921305,1.66754954,671.75,670.9,2.20213116]
[1752165921706,1.66754954,671.73,670.93,2.20213116]
[1752165922202,1.66754954,671.74,670.92,2.20213116]
[1752165922405,1.66754954,671.74,670.89,2.321]
[1752165922406,1.66754954,671.73,670.93,2.20213116]
[1752165923308,1.66754954,671.74,670.92,2.20213116]
[1752165923604,1.66754954,671.73,670.93,2.20213116]
[1752165923808,1.66754954,671.78,670.96,2.20213116]
[1752165924308,1.66754954,671.79,670.94,2.20213116]
[1752165924502,1.66754954,671.78,670.93,0.25912426]
[1752165925903,1.66754954,671.8,670.93,0.25912426]
[1752165927904,1.66754954,671.81,670.93,0.25912426]
[1752165928605,1.66754954,671.76,670.94,2.20213116]
[1752165928804,1.66754954,671.77,670.94,2.20213116]
[1752165929009,1.66754954,671.77,670.95,2.20213116]
[1752165929210,1.66754954,671.77,670.94,2.20213116]
[1752165929406,1.66754954,671.78,670.93,2.46125542]
[1752165929711,1.66754954,671.83,670.96,2.20213116]
[1752165930407,1.66754954,671.83,670.95,2.20213116]
[1752165930710,1.66754954,671.84,670.96,2.20213116]
[1752165930911,1.66754954,671.9,670.94,2.20213116]
[1752165931206,1.66754954,671.9,670.93,0.25912426]
[1752165931207,1.66754954,671.9,670.95,2.20213116]
[1752165931410,1.66754954,671.89,670.95,2.20213116]
[1752165931807,1.66754954,671.89,670.96,2.20213116]
[1752165932007,1.66754954,671.92,670.99,2.20213116]
[1752165932511,1.66754954,671.93,670.99,2.20213116]
[1752165932713,1.66754954,671.98,671.04,2.20213116]
[1752165933713,1.66754954,671.93,670.98,2.20213116]
[1752165934508,1.66754954,671.93,670.99,2.20213116]
[1752165935709,1.66754954,671.95,670.95,2.20213116]
[1752165935908,1.66754954,671.97,670.93,0.25912426]
[1752165936109,1.6647013,671.97,670.93,0.25912426]
[1752165936712,1.6647013,672.04,670.98,2.20213116]
[1752165936914,1.6647013,672.06,671.0,2.20213116]
[1752165937614,1.6647013,672.06,670.93,0.25912426]
[1752165937615,1.6647013,672.04,671.03,2.20213116]
[1752165937812,1.6647013,672.04,671.06,2.20213116]
[1752165938011,1.6647013,672.03,671.07,2.20213116]
[1752165938413,1.6647013,672.04,671.06,2.20213116]
[1752165938711,1.6647013,672.04,671.07,2.20213116]
[1752165938910,1.6647013,672.04,671.06,2.20213116]
[1752165939515,1.6647013,672.0,671.14,2.20213116]
[1752165940215,1.6647013,672.01,671.13,2.20213116]
[1752165940913,1.6647013,672.06,671.01,2.20213116]
[1752165941316,1.6647013,672.07,671.02,2.20213116]
[1752165941514,1.6647013,672.11,670.93,0.25912426]
[1752165941718,1.6647013,672.18,670.99,2.20213116]
[1752165942016,1.6647013,672.18,671.0,2.20213116]
[1752165942317,1.6647013,672.19,670.99,2.20213116]
[1752165942516,1.6647013,672.23,671.02,2.20213116]
[1752165943217,1.6647013,672.24,671.03,2.20213116]
[1752165943716,1.6647013,672.25,671.04,2.20213116]
[1752165944315,1.6647013,672.24,671.07,2.20213116]
[1752165945315,1.6647013,672.24,671.06,2.20213116]
[1752165946319,1.6647013,672.24,671.07,2.20213116]
[1752165946515,1.6647013,672.24,671.08,2.20213116]
[1752165946820,1.6647013,672.24,670.93,0.25912426]
[1752165946821,1.6647013,672.22,671.11,2.20213116]
[1752165947220,1.6647013,672.23,671.1,2.20213116]
[1752165947421,1.6647013,672.22,671.13,2.20213116]
[1752165947821,1.6647013,672.22,670.96,3.3035159]
[1752165947822,1.6647013,672.23,671.2,2.20213116]
[1752165948118,1.6647013,672.23,671.04,3.3035159]
[1752165948119,1.6647013,672.23,671.19,2.20213116]
[1752165949221,1.6647013,672.21,671.23,2.20213116]
[1752165949622,1.6647013,672.22,671.23,2.20213116]
[1752165950124,1.6647013,672.22,671.22,2.20213116]
[1752165950823,1.6647013,672.21,671.22,2.20213116]
[1752165951324,1.6647013,672.22,671.22,2.20213116]
[1752165952223,1.6647013,672.25,671.14,2.20213116]
[1752165952626,1.6647013,672.26,671.1,2.20213116]
[1752165952827,1.6647013,672.27,671.11,2.20213116]
[1752165953824,1.6647013,672.3,671.15,2.20213116]
[1752165954024,1.6647013,672.3,671.14,2.20213116]
[1752165954228,1.6647013,672.3,671.13,2.20213116]
[1752165954728,1.6647013,672.3,671.14,2.20213116]
[1752165955326,1.6647013,672.34,671.0,2.20213116]
[1752165956426,1.6647013,672.34,670.99,2.20213116]
[1752165956725,1.6647013,672.33,671.02,2.20213116]
[1752165956936,1.6647013,672.36,671.05,2.20213116]
[1752165957330,1.6647013,672.37,671.04,2.20213116]
[1752165957625,1.6647013,672.36,671.03,2.20213116]
[1752165958031,1.6647013,672.35,671.04,2.20213116]
[1752165958229,1.6647013,672.35,671.05,2.20213116]
[1752165958426,1.6647013,672.35,671.04,2.20213116]
[1752165959432,1.6647013,672.34,671.03,2.20213116]
[1752165960732,1.6647013,672.33,671.07,2.20213116]
[1752165960929,1.6647013,672.33,671.08,2.20213116]
[1752165961335,1.6647013,672.33,671.09,2.20213116]
[1752165961534,1.6647013,672.32,671.1,2.20213116]
[1752165961731,1.6647013,672.33,671.11,2.20213116]
[1752165962030,1.6647013,672.34,671.09,2.20213116]
[1752165962230,1.6647013,672.34,671.08,2.20213116]
[1752165962933,1.6647013,672.34,671.0,2.447]
[1752165962934,1.6647013,672.34,671.1,2.20213116]
[1752165963435,1.6647013,672.34,671.09,2.20213116]
[1752165963635,1.6647013,672.32,671.13,2.20213116]
[1752165963835,1.6647013,672.29,671.15,2.20213116]
[1752165964331,1.6647013,672.29,671.14,2.20213116]
[1752165965031,1.6647013,672.29,671.0,2.447]
[1752165965032,1.6647013,672.3,671.13,2.20213116]
[1752165966331,1.6647013,672.3,671.12,2.20213116]
[1752165966935,1.6647013,672.29,671.12,2.20213116]
[1752165967338,1.6647013,672.44,671.0,2.447]
[1752165967537,1.6647013,672.38,671.0,2.447]
[1752165968133,1.6647013,672.37,671.0,2.447]
[1752165968336,1.6647013,672.38,671.0,2.447]
[1752165968536,1.6647013,672.36,671.0,2.447]
[1752165969531,1.6647013,672.37,671.0,2.447]
[1752165970038,1.6647013,672.28,671.14,2.20213116]
[1752165970333,1.6647013,672.25,671.2,2.20213116]
[1752165971436,1.65966278,672.25,671.2,2.20213116]
[1752165972139,1.65966278,672.26,671.2,2.20213116]
[1752165972636,1.65966278,672.25,671.2,2.20213116]
[1752165973139,1.65966278,672.33,671.01,2.20213116]
[1752165973335,1.65966278,672.34,671.02,2.20213116]
[1752165973832,1.65966278,672.29,671.0,2.447]
[1752165974238,1.65966278,672.1,671.0,2.447]
[1752165976437,1.65966278,672.06,671.0,2.447]
[1752165977343,1.65966278,672.07,671.0,2.447]
[1752165977842,1.65966278,672.09,671.0,2.447]
[1752165978041,1.65966278,672.17,671.05,2.20213116]
[1752165978241,1.65966278,672.16,671.05,2.20213116]
[1752165978439,1.65966278,672.16,671.06,2.20213116]
[1752165979039,1.65966278,672.16,671.05,2.20213116]
[1752165979242,1.65966278,672.16,671.06,2.20213116]
[1752165979439,1.65966278,672.18,671.02,2.20213116]
[1752165980244,1.65966278,672.17,671.02,2.20213116]
[1752165980443,1.65966278,672.17,671.03,2.20213116]
[1752165980643,1.65966278,672.17,671.04,2.20213116]
[1752165980941,1.65966278,672.19,671.0,4.64913116]
[1752165981443,1.65966278,672.18,671.01,2.20213116]
[1752165981845,1.65966278,672.22,671.05,2.20213116]
[1752165982344,1.65966278,672.21,671.06,2.20213116]
[1752165982746,1.65966278,672.2,671.06,2.20213116]
[1752165983141,1.65966278,672.2,671.07,2.20213116]
[1752165983342,1.65966278,672.19,671.09,2.20213116]
[1752165983845,1.65966278,672.22,671.12,2.20213116]
[1752165984246,1.65966278,672.22,671.13,2.20213116]
[1752165984550,1.65966278,672.17,671.09,2.20213116]
[1752165984750,1.65966278,672.18,671.09,2.20213116]
[1752165985244,1.65966278,672.17,671.1,2.20213116]
[1752165986043,1.65966278,672.14,671.17,2.20213116]
[1752165986247,1.65966278,672.14,671.0,2.447]
[1752165986248,1.65966278,672.14,671.18,2.20213116]
[1752165986447,1.65966278,672.13,671.18,2.20213116]
[1752165987150,1.65966278,672.13,671.2,2.20213116]
[1752165987350,1.65966278,672.13,671.19,2.20213116]
[1752165987550,1.65966278,672.13,671.2,2.20213116]
[1752165988151,1.65966278,672.14,671.17,2.20213116]
[1752165988351,1.65966278,672.13,671.19,2.20213116]
[1752165989052,1.65966278,672.12,671.22,2.20213116]
[1752165989351,1.65966278,672.11,671.25,2.20213116]
[1752165990249,1.65966278,672.1,671.27,2.20213116]
[1752165991152,1.65966278,672.09,671.29,2.20213116]
[1752165991852,1.65966278,672.1,671.26,2.20213116]
[1752165992250,1.65966278,672.06,671.25,2.20213116]
[1752165992955,1.65966278,672.05,671.27,2.20213116]
[1752165993354,1.65966278,672.04,671.28,2.20213116]
[1752165993552,1.65966278,672.15,671.02,2.20213116]
[1752165993756,1.65966278,672.39,671.4,2.20213116]
[1752165994055,0.25896518,672.68,671.45,2.20213116]
[1752165994056,1.65966278,672.44,671.45,2.20213116]
[1752165994252,1.65966278,672.43,671.48,2.20213116]
[1752165994456,1.65966278,672.48,671.36,2.20213116]
[1752165994656,1.65966278,672.48,670.93,0.25912426]
[1752165994657,1.65966278,672.48,671.37,2.20213116]
[1752165995253,1.65966278,672.44,671.38,2.20213116]
[1752165995453,1.65966278,672.45,671.38,1.823]
[1752165995653,1.65966278,672.45,671.38,4.02513116]
[1752165995851,1.65966278,672.46,671.39,2.20213116]
[1752165996257,1.65966278,672.45,671.4,2.20213116]
[1752165996457,1.65966278,672.44,671.43,2.20213116]
[1752165996657,1.65966278,672.43,671.47,2.20213116]
[1752165997060,1.65966278,672.42,671.46,2.20213116]
[1752165997257,1.65966278,672.43,671.47,2.20213116]
[1752165997457,1.65966278,672.4,671.55,2.20213116]
[1752165997757,1.65966278,672.37,671.63,2.20213116]
[1752165999269,1.65966278,672.37,671.64,2.20213116]
[1752165999469,1.65966278,672.37,671.63,2.20213116]
[1752165999669,1.65966278,672.36,671.62,2.20213116]
[1752165999969,1.65966278,672.4,671.54,2.20213116]
[1752166000871,1.65966278,672.44,671.44,2.20213116]
[1752166002569,1.65966278,672.44,671.43,2.20213116]
[1752166003465,1.65966278,672.45,671.43,2.20213116]
[1752166003666,1.65966278,672.47,671.38,1.823]
[1752166003870,1.65966278,672.38,671.38,1.823]
[1752166004069,1.65966278,672.42,671.54,1.64546572]
[1752166005671,1.65966278,672.43,671.53,1.64546572]
[1752166005871,1.65966278,672.4,671.57,1.64546572]
[1752166006473,1.65966278,672.39,671.55,1.64546572]
[1752166007068,1.65966278,672.39,671.56,1.64546572]
[1752166007269,0.25896518,672.68,671.53,1.64546572]
[1752166007270,1.65966278,672.37,671.53,1.64546572]
[1752166007470,1.65966278,672.37,671.52,1.64546572]
[1752166007973,1.65966278,672.36,671.52,1.64546572]
[1752166008168,1.65966278,672.37,671.52,1.64546572]
[1752166008374,1.65966278,672.32,671.58,1.64546572]
[1752166009074,1.65966278,672.34,671.6,1.64546572]
[1752166010274,1.65966278,672.47,671.39,1.64546572]
[1752166010772,1.65966278,672.46,671.41,1.64546572]
[1752166011576,1.65966278,672.43,671.46,1.64546572]
[1752166011777,1.65966278,672.31,671.38,1.823]
[1752166012176,1.2656363,672.53,671.38,1.823]
[1752166012177,1.65966278,672.32,671.38,1.823]
[1752166012874,1.65966278,672.31,671.38,1.823]
[1752166013073,1.65966278,672.34,671.38,1.823]
[1752166013475,1.65966278,672.27,671.48,1.64546572]
[1752166014179,1.65966278,672.25,671.5,1.64546572]
[1752166014977,1.65966278,672.32,671.56,1.64546572]
[1752166020582,1.65966278,672.31,671.58,1.64546572]
[1752166021082,1.65966278,672.3,671.59,1.64546572]
[1752166021278,1.65966278,672.3,671.38,1.823]
[1752166021279,1.65966278,672.3,671.56,1.64546572]
[1752166021982,1.65966278,672.25,671.5,1.64546572]
[1752166022183,1.65966278,672.25,671.51,1.64546572]
[1752166022377,1.65966278,672.26,671.5,1.64546572]
[1752166022677,1.65966278,672.26,671.38,1.823]
[1752166022678,1.65966278,672.26,671.51,1.64546572]
[1752166022878,1.65966278,672.27,671.51,1.64546572]
[1752166023577,1.65966278,672.27,671.38,1.823]
[1752166023578,1.65966278,672.27,671.5,1.64546572]
[1752166023778,1.65966278,672.27,671.55,1.64546572]
[1752166024478,0.25896518,672.68,671.56,1.64546572]
[1752166024479,1.65966278,672.3,671.56,1.64546572]
[1752166024683,1.65966278,672.31,671.56,1.64546572]
[1752166025385,1.65966278,672.3,671.56,1.64546572]
[1752166025680,1.65966278,672.32,671.58,1.64546572]
[1752166026583,1.65966278,672.31,671.59,1.64546572]
[1752166029380,1.65966278,672.31,671.58,1.64546572]
[1752166029884,1.65966278,672.39,671.47,1.64546572]
[1752166031986,1.65966278,672.39,671.46,1.64546572]
[1752166032486,1.26494417,672.58,671.5,1.64546572]
[1752166032487,1.65966278,672.43,671.5,1.64546572]
[1752166033982,1.65966278,672.37,671.23,2.20213116]
[1752166034386,1.65966278,672.35,671.29,2.20213116]
[1752166035484,1.65966278,672.35,671.3,2.20213116]
[1752166035787,1.65966278,672.3,671.43,2.20213116]
[1752166036188,1.65966278,672.3,671.44,2.624]
[1752166036383,2.22616171,672.44,671.44,2.624]
[1752166036384,1.65966278,672.29,671.44,2.624]
[1752166041590,1.65966278,672.27,671.46,2.20213116]
[1752166041789,1.65966278,672.28,671.46,2.20213116]
[1752166042792,1.65966278,672.26,671.44,2.624]
[1752166043390,1.65966278,672.25,671.44,2.624]
[1752166043793,1.65966278,672.3,671.44,2.624]
[1752166044994,1.65966278,672.31,671.44,2.624]
[1752166045395,1.65966278,672.3,671.44,2.624]
[1752166045590,1.65966278,672.36,671.44,2.624]
[1752166047595,1.65966278,672.35,671.44,2.624]
[1752166047789,1.65966278,672.34,671.44,2.624]
[1752166047994,1.65966278,672.33,671.45,2.20213116]
[1752166049395,1.65966278,672.32,671.46,2.20213116]
[1752166049691,1.65966278,672.32,671.45,2.20213116]